bitfinex/quotes_SOLUSD_20251218
["timestamp","ask_amount","ask_price","bid_price","bid_amount"]
[1766071225941,10.7418793,127.21,127.15,10.7418793]
[1766071226143,10.7418793,127.22,127.17,10.7418793]
[1766071226360,11.4218793,127.22,127.17,10.7418793]
[1766071226666,27.49842865,127.28,127.19,10.7418793]
[1766071226864,0.68,127.27,127.23,10.7418793]
[1766071227161,11.4218793,127.28,127.18,8.6]
[1766071227369,0.68,127.27,127.22,10.7418793]
[1766071227550,10.7418793,127.27,127.22,10.7418793]
[1766071227867,0.68,127.25,127.2,10.7418793]
[1766071228069,0.68,127.27,127.21,7.86091202]
[1766071228368,0.68,127.25,127.2,10.7418793]
[1766071228754,11.4218793,127.24,127.18,10.7418793]
[1766071228960,0.68,127.27,127.22,10.7418793]
[1766071229275,11.4218793,127.27,127.21,7.86092282]
[1766071229476,11.4218793,127.31,127.25,10.7418793]
[1766071229650,0.68,127.25,127.19,18.60390732]
[1766071229851,11.4218793,127.25,127.19,18.60390732]
[1766071230076,38.8884763,127.29,127.21,10.7418793]
[1766071230252,10.7418793,127.28,127.22,10.7418793]
[1766071230443,0.68,127.28,127.23,10.7418793]
[1766071230665,11.4218793,127.27,127.19,27.51766132]
[1766071230864,0.68,127.26,127.21,10.7418793]
[1766071231442,0.68,127.26,127.19,27.51766132]
[1766071231642,0.68,127.26,127.22,10.7418793]
[1766071231868,0.68,127.24,127.16,19.65955333]
[1766071232170,0.68,127.21,127.17,10.7418793]
[1766071232475,0.68,127.21,127.16,10.7418793]
[1766071232773,0.68,127.21,127.17,10.7418793]
[1766071232952,0.68,127.22,127.18,10.7418793]
[1766071234062,0.68,127.21,127.17,10.7418793]
[1766071234371,0.68,127.23,127.15,27.52654345]
[1766071234671,0.68,127.23,127.19,10.7418793]
[1766071234882,113.0418793,127.26,127.21,10.7418793]
[1766071235092,0.68,127.26,127.23,10.7418793]
[1766071235372,11.74187929,127.35,127.25,10.7418793]
[1766071235373,0.68,127.34,127.25,10.7418793]
[1766071235558,16.45237534,127.35,127.28,10.7418793]
[1766071235559,0.68,127.32,127.28,10.7418793]
[1766071235762,0.68,127.32,127.27,10.7418793]
[1766071235959,0.68,127.31,127.26,10.7418793]
[1766071236172,7.85252054,127.35,127.28,10.7418793]
[1766071236472,0.68,127.33,127.27,7.85731122]
[1766071236648,0.68,127.33,127.28,10.7418793]
[1766071236850,0.68,127.31,127.26,10.7418793]
[1766071237370,0.68,127.31,127.25,7.85846638]
[1766071237567,0.68,127.31,127.26,10.7418793]
[1766071237765,0.68,127.31,127.27,10.7418793]
[1766071237966,0.68,127.35,127.3,10.7418793]
[1766071238284,0.68,127.35,127.29,7.85571274]
[1766071238468,0.68,127.35,127.31,10.7418793]
[1766071239384,39.24573778,127.41,127.3,7.85542267]
[1766071239385,0.68,127.42,127.34,10.7418793]
[1766071239599,0.68,127.42,127.37,10.7418793]
[1766071239896,0.68,127.42,127.32,8.6]
[1766071240182,0.68,127.42,127.39,10.7418793]
[1766071240673,0.78,127.44,127.4,10.7418793]
[1766071241048,0.78,127.44,127.41,10.7418793]
[1766071241478,0.78,127.44,127.4,10.7418793]
[1766071241665,0.68,127.43,127.37,8.6]
[1766071241869,0.68,127.43,127.38,10.7418793]
[1766071242182,0.68,127.41,127.36,10.7418793]
[1766071242553,0.7,127.4,127.36,10.7418793]
[1766071242752,0.7,127.4,127.35,10.7418793]
[1766071242753,11.4418793,127.4,127.35,10.7418793]
[1766071242964,10.7418793,127.39,127.33,10.7418793]
[1766071243285,27.47047043,127.41,127.36,10.7418793]
[1766071243286,0.7,127.41,127.36,10.7418793]
[1766071243656,10.7418793,127.43,127.38,10.7418793]
[1766071243862,0.7,127.43,127.36,7.85154688]
[1766071244063,0.7,127.43,127.38,10.7418793]
[1766071244271,10.8418793,127.44,127.32,17.40994492]
[1766071244272,0.1,127.44,127.33,8.80994492]
[1766071244466,10.7418793,127.43,127.37,10.7418793]
[1766071244676,0.7,127.42,127.37,10.7418793]
[1766071244876,0.1,127.44,127.38,18.59220102]
[1766071245078,0.1,127.44,127.38,27.47663668]
[1766071245278,10.7418793,127.43,127.37,7.85098854]
[1766071245478,0.7,127.42,127.37,18.59286784]
[1766071245655,0.7,127.42,127.36,18.59342281]
[1766071245857,11.4418793,127.41,127.35,29.03184244]
[1766071246089,8.64683185,127.44,127.37,10.7418793]
[1766071246290,8.64683185,127.44,127.35,10.43767296]
[1766071246291,0.7,127.41,127.35,29.03181789]
[1766071246460,0.7,127.41,127.36,18.59360645]
[1766071246788,0.7,127.41,127.37,7.85112241]
[1766071247185,0.8,127.44,127.37,18.59300171]
[1766071247351,0.1,127.44,127.41,10.7418793]
[1766071247665,0.1,127.44,127.4,10.7418793]
[1766071247866,0.1,127.44,127.37,27.47897826]
[1766071248070,0.8,127.44,127.37,27.47897826]
[1766071248272,0.8,127.44,127.4,10.7418793]
[1766071249177,0.8,127.44,127.39,7.84979162]
[1766071249178,1e-08,127.44,127.42,10.7418793]
[1766071249352,1e-08,127.44,127.39,27.47456593]
[1766071249558,1e-08,127.44,127.41,10.7418793]
[1766071249757,1e-08,127.44,127.42,10.7418793]
[1766071250063,1e-08,127.44,127.43,10.7418793]
[1766071250265,0.1,127.45,127.43,10.7418793]
[1766071250470,0.1,127.45,127.43,7.84744565]
[1766071250782,0.1,127.45,127.43,18.58932495]
[1766071251292,0.1,127.45,127.43,18.58930021]
[1766071251584,0.8,127.45,127.41,10.7418793]
[1766071251885,0.1,127.45,127.42,18.58951248]
[1766071252083,0.1,127.45,127.43,18.5891626]
[1766071252878,0.1,127.45,127.42,10.7418793]
[1766071253259,0.1,127.45,127.42,7.84780162]
[1766071253455,0.1,127.45,127.41,18.59045752]
[1766071254062,0.1,127.45,127.42,7.84785883]
[1766071254268,0.1,127.45,127.42,18.58973813]
[1766071254477,13.77262671,127.49,127.43,10.7418793]
[1766071254678,14.47262671,127.49,127.43,10.7418793]
[1766071254872,3.73074741,127.49,127.43,10.7418793]
[1766071255389,10.32623412,127.49,127.42,34.06349936]
[1766071256088,3.73074741,127.49,127.42,34.06349936]
[1766071256263,10.32623412,127.49,127.42,6.59548671]
[1766071256465,0.7,127.48,127.42,6.59548671]
[1766071256774,6.59548671,127.48,127.4,27.47252746]
[1766071256974,0.7,127.47,127.41,6.59548671]
[1766071257373,3.03074741,127.49,127.43,6.59548671]
[1766071257574,3.03074741,127.49,127.44,6.59548671]
[1766071257776,3.03074741,127.49,127.43,15.19548671]
[1766071258070,3.73074741,127.49,127.44,6.59548671]
[1766071258276,3.03074741,127.49,127.45,6.59548671]
[1766071258480,6.59548671,127.52,127.46,14.44108532]
[1766071258678,7.29548671,127.52,127.46,14.44108532]
[1766071258888,6.59548671,127.51,127.46,7.84559861]
[1766071259190,7.29548671,127.51,127.46,7.84559861]
[1766071259394,7.29548671,127.49,127.43,16.44735778]
[1766071259688,7.29548671,127.46,127.38,6.59548671]
[1766071259888,6.59548671,127.45,127.39,15.19548671]
[1766071260062,6.59548671,127.45,127.41,7.84850712]
[1766071260264,7.29548671,127.45,127.4,7.84919267]
[1766071260469,7.29548671,127.43,127.36,6.59548671]
[1766071260796,6.59548671,127.42,127.37,7.85075974]
[1766071260978,0.7,127.43,127.37,7.85075974]
[1766071261184,0.7,127.43,127.38,7.85040729]
[1766071261380,36.26307849,127.49,127.37,26.22206305]
[1766071261580,0.7,127.49,127.43,6.59548671]
[1766071261792,0.7,127.49,127.39,25.25972526]
[1766071261793,7.29548671,127.45,127.4,10.43767296]
[1766071262102,6.59548671,127.44,127.4,8.6]
[1766071262403,6.59548671,127.46,127.4,8.6]
[1766071262573,7.84410161,127.49,127.37,8.6]
[1766071262574,0.7,127.43,127.37,8.6]
[1766071262776,6.59548671,127.38,127.27,0.99999999]
[1766071263098,7.29548671,127.44,127.37,6.59548671]
[1766071263298,0.7,127.42,127.36,15.19548671]
[1766071263486,0.7,127.45,127.38,6.59548671]
[1766071263685,6.59548671,127.45,127.34,66.75024347]
[1766071263885,7.29548671,127.42,127.35,25.63315967]
[1766071264193,6.59548671,127.46,127.39,6.59548671]
[1766071264390,6.59548671,127.44,127.39,8.6]
[1766071264577,0.7,127.43,127.39,8.6]
[1766071264773,6.59548671,127.45,127.39,16.44990815]
[1766071264990,0.7,127.45,127.39,16.44990815]
[1766071265190,7.29548671,127.45,127.39,16.44990815]
[1766071265392,7.29548671,127.45,127.39,36.07468246]
[1766071265793,7.29548671,127.43,127.38,7.8503337]
[1766071266096,0.7,127.4,127.36,7.85138171]
[1766071266301,0.7,127.44,127.37,7.85112785]
[1766071266599,7.29548671,127.41,127.35,7.85237534]
[1766071266796,0.7,127.41,127.35,14.44786205]
[1766071267004,0.7,127.44,127.35,27.48331369]
[1766071267179,7.29548671,127.44,127.37,6.59548671]
[1766071267580,0.7,127.48,127.43,6.59548671]
[1766071267778,7.29548671,127.48,127.42,15.19548671]
[1766071268324,7.29548671,127.5,127.43,6.59548671]
[1766071268604,7.94144853,127.53,127.42,16.44788768]
[1766071268605,0.7,127.47,127.42,16.44788768]
[1766071269105,0.7,127.47,127.42,8.6]
[1766071269409,0.7,127.46,127.41,16.4484146]
[1766071269703,0.7,127.46,127.4,33.48231642]
[1766071269884,6.59548671,127.46,127.4,16.44915675]
[1766071270090,0.7,127.44,127.4,8.6]
[1766071270809,7.84607702,127.46,127.41,6.59548671]
[1766071270810,0.7,127.46,127.41,6.59548671]
[1766071271106,0.7,127.46,127.42,6.59548671]
[1766071271617,0.7,127.46,127.4,42.66790417]
[1766071271904,0.7,127.46,127.4,34.06790417]
[1766071272112,0.7,127.46,127.4,42.66790417]
[1766071272318,0.7,127.45,127.4,42.66790417]
[1766071273125,0.68,127.44,127.4,16.44918356]
[1766071274126,6.59548671,127.44,127.37,6.59548671]
[1766071274312,6.59548671,127.41,127.36,7.85165428]
[1766071274516,0.68,127.4,127.35,23.04768127]
[1766071274819,0.68,127.47,127.36,27.48105711]
[1766071275013,6.59548671,127.44,127.37,6.59548671]
[1766071275215,0.68,127.42,127.37,6.59548671]
[1766071275416,0.68,127.42,127.36,34.07654382]
[1766071275595,7.27548671,127.42,127.36,34.07654382]
[1766071275794,7.27548671,127.42,127.36,27.48105711]
[1766071276007,7.27548671,127.42,127.36,7.85166013]
[1766071276008,0.68,127.41,127.36,7.85166013]
[1766071276211,0.68,127.41,127.36,34.08349888]
[1766071276413,0.68,127.41,127.37,6.60244177]
[1766071276807,0.68,127.41,127.36,16.45166778]
[1766071277004,0.68,127.41,127.36,8.6]
[1766071277005,0.68,127.4,127.36,8.6]
[1766071277624,0.68,127.4,127.36,16.45172823]
[1766071278916,0.68,127.4,127.36,8.6]
[1766071279197,0.68,127.4,127.36,16.45175118]
[1766071280504,0.68,127.4,127.36,23.05419295]
[1766071280706,0.68,127.42,127.36,15.20244177]
[1766071280917,0.68,127.42,127.36,34.83183875]
[1766071281116,0.68,127.41,127.36,8.6]
[1766071281598,0.68,127.41,127.36,15.20244177]
[1766071281799,6.60244177,127.41,127.36,8.6]
[1766071281995,0.68,127.38,127.29,39.958753]
[1766071282203,0.68,127.33,127.28,19.84089896]
[1766071282425,0.68,127.33,127.28,0.2]
[1766071282629,7.28244177,127.33,127.28,0.2]
[1766071282927,7.28244177,127.33,127.28,14.65885069]
[1766071282928,0.68,127.33,127.28,14.65885069]
[1766071283138,6.60244177,127.35,127.29,7.28244177]
[1766071283336,6.60244177,127.34,127.29,0.68]
[1766071283515,6.60244177,127.34,127.28,0.88]
[1766071283516,6.60244177,127.33,127.28,0.88]
[1766071283699,7.28244177,127.33,127.28,0.2]
[1766071283904,6.60244177,127.32,127.28,0.2]
[1766071284105,6.60244177,127.31,127.28,0.2]
[1766071284315,7.28244177,127.32,127.28,0.2]
[1766071284506,6.60244177,127.31,127.25,7.28244177]
[1766071284712,7.28244177,127.32,127.27,7.85727671]
[1766071285508,7.28244177,127.32,127.26,7.28244177]
[1766071285509,7.28244177,127.32,127.26,8.53775098]
[1766071285710,6.60244177,127.31,127.26,0.68]
[1766071286029,8.6,127.34,127.27,7.28244177]
[1766071286030,0.68,127.33,127.27,7.28244177]
[1766071286204,7.28244177,127.3,127.24,9.28]
[1766071286409,7.28244177,127.29,127.24,0.68]
[1766071286609,0.68,127.29,127.24,0.68]
[1766071286809,0.68,127.29,127.24,8.539151]
[1766071287102,7.85545954,127.3,127.21,6.60244177]
[1766071287308,0.68,127.31,127.26,6.60244177]
[1766071287519,0.68,127.33,127.27,6.60244177]
[1766071287825,0.68,127.32,127.27,6.60244177]
[1766071288701,7.85323606,127.34,127.28,6.60244177]
[1766071288702,0.68,127.34,127.28,6.60244177]
[1766071289025,0.68,127.34,127.28,14.45903278]
[1766071289328,0.68,127.33,127.28,7.85659101]
[1766071289628,0.68,127.36,127.3,6.60244177]
[1766071289831,0.68,127.41,127.35,7.28244177]
[1766071290007,0.68,127.43,127.37,6.60244177]
[1766071290202,7.28244177,127.46,127.4,6.60244177]
[1766071290419,6.60244177,127.47,127.41,0.68]
[1766071290735,7.28244177,127.46,127.4,6.60244177]
[1766071290913,7.28244177,127.46,127.39,14.45206606]
[1766071291118,0.68,127.44,127.39,8.52977432]
[1766071291318,0.68,127.44,127.39,0.68]
[1766071291628,7.28244177,127.44,127.38,6.60244177]
[1766071291828,0.68,127.43,127.38,6.60244177]
[1766071292031,27.45972764,127.46,127.36,10.43767296]
[1766071292032,6.60244177,127.42,127.36,6.60244177]
[1766071292349,0.68,127.4,127.35,7.28244177]
[1766071292628,7.28244177,127.42,127.36,6.60244177]
[1766071292821,7.28244177,127.42,127.37,6.60244177]
[1766071292822,0.68,127.42,127.37,6.60244177]
[1766071293219,0.68,127.42,127.37,14.45334771]
[1766071293931,19.24761788,127.47,127.4,6.60244177]
[1766071293932,10.43767296,127.47,127.4,6.60244177]
[1766071294114,0.68,127.5,127.44,6.60244177]
[1766071294314,0.68,127.5,127.4,19.03767296]
[1766071294315,7.28244177,127.48,127.42,0.68]
[1766071294516,6.60244177,127.46,127.4,0.68]
[1766071294720,6.60244177,127.46,127.4,7.28244177]
[1766071294920,0.68,127.47,127.4,0.68]
[1766071295135,0.68,127.46,127.4,15.13114332]
[1766071295430,7.28244177,127.46,127.4,15.13114332]
[1766071295608,7.28244177,127.46,127.41,7.84863088]
[1766071295811,7.28244177,127.46,127.4,15.13152171]
[1766071296006,10.43767296,127.52,127.41,7.84834117]
[1766071296229,8.6,127.51,127.44,6.60244177]
[1766071296529,7.28244177,127.49,127.43,7.28244177]
[1766071296731,0.68,127.49,127.43,7.28244177]
[1766071296930,0.68,127.49,127.44,6.60244177]
[1766071297131,0.68,127.49,127.43,15.12937345]
[1766071297331,7.28244177,127.48,127.42,14.45037629]
[1766071297526,0.68,127.48,127.42,7.28244177]
[1766071297711,0.68,127.48,127.43,6.60244177]
[1766071297917,7.28244177,127.5,127.44,6.60244177]
[1766071298215,7.28244177,127.49,127.44,7.84662356]
[1766071298426,7.28244177,127.49,127.43,8.52720179]
[1766071299033,6.60244177,127.47,127.36,8.80994492]
[1766071299252,7.28244177,127.48,127.42,6.60244177]
[1766071299457,6.60244177,127.49,127.42,0.68]
[1766071299745,6.60244177,127.48,127.42,7.28244177]
[1766071299961,6.60244177,127.47,127.42,0.68]
[1766071300435,6.60244177,127.48,127.42,0.68]
[1766071300748,6.60244177,127.45,127.4,0.68]
[1766071301444,7.28244177,127.45,127.39,7.84990972]
[1766071301622,6.60244177,127.48,127.42,6.60244177]
[1766071301828,6.60244177,127.48,127.43,0.68]
[1766071302023,7.28244177,127.48,127.43,0.68]
[1766071302536,6.60244177,127.49,127.44,0.67]
[1766071302720,0.7,127.51,127.45,7.27244177]
[1766071302926,7.30244177,127.51,127.45,7.27244177]
[1766071303237,0.7,127.51,127.45,0.67]
[1766071303540,6.60244177,127.52,127.46,0.67]
[1766071303737,6.70244177,127.53,127.47,0.67]
[1766071303941,6.60244177,127.52,127.47,0.67]
[1766071304242,0.7,127.52,127.46,0.67]
[1766071304441,6.60244177,127.51,127.46,0.67]
[1766071304850,6.60244177,127.51,127.44,6.60244177]
[1766071305151,7.30244177,127.46,127.4,8.51894275]
[1766071305446,6.60244177,127.43,127.38,8.6]
[1766071305744,6.60244177,127.44,127.38,17.12043223]
[1766071306132,6.60244177,127.46,127.4,8.51909005]
[1766071306430,6.60244177,127.45,127.4,8.51909005]
[1766071306625,7.30244177,127.46,127.41,0.67]
[1766071306844,6.60244177,127.45,127.41,0.67]
[1766071307027,7.30244177,127.46,127.41,0.67]
[1766071307226,6.60244177,127.48,127.42,0.67]
[1766071307537,6.60244177,127.47,127.42,8.51780667]
[1766071307720,0.7,127.48,127.42,8.51780667]
[1766071307920,7.30244177,127.49,127.43,0.67]
[1766071308138,7.30244177,127.49,127.43,7.27244177]
[1766071308350,0.7,127.49,127.44,0.67]
[1766071308537,7.30244177,127.49,127.44,0.67]
[1766071308836,7.30244177,127.49,127.43,6.60244177]
[1766071308837,7.30244177,127.52,127.46,7.27244177]
[1766071309136,0.1,127.53,127.49,0.67]
[1766071309338,0.1,127.53,127.49,7.27244177]
[1766071309513,0.1,127.56,127.51,0.67]
[1766071309722,0.1,127.56,127.52,0.67]
[1766071310044,0.1,127.56,127.51,6.60244177]
[1766071310045,0.1,127.58,127.55,0.67]
[1766071310233,0.1,127.62,127.57,0.67]
[1766071310431,6.70244177,127.62,127.57,0.67]
[1766071310629,6.60244177,127.61,127.56,0.67]
[1766071310829,0.8,127.62,127.56,0.67]
[1766071311017,0.7,127.56,127.45,0.67]
[1766071311344,6.60244177,127.58,127.52,6.60244177]
[1766071311542,27.52525541,127.62,127.55,0.67]
[1766071311543,0.1,127.62,127.55,0.67]
[1766071311720,0.1,127.62,127.57,0.67]
[1766071312447,6.60244177,127.61,127.53,8.6]
[1766071312628,6.60244177,127.6,127.54,0.67]
[1766071312831,6.60244177,127.58,127.54,0.67]
[1766071313146,7.30244177,127.56,127.5,8.51276365]
[1766071313323,44.56530615,127.62,127.52,20.27476787]
[1766071313525,6.60244177,127.56,127.5,7.27244177]
[1766071313754,6.60244177,127.58,127.52,15.11426225]
[1766071313953,6.60244177,127.57,127.52,0.67]
[1766071314458,0.7,127.58,127.52,15.11408542]
[1766071314459,7.30244177,127.58,127.52,15.11408542]
[1766071314660,19.07364759,127.62,127.53,6.60244177]
[1766071314948,6.60244177,127.58,127.52,7.84164365]
[1766071315157,6.60244177,127.57,127.51,0.67]
[1766071315323,0.7,127.58,127.52,15.11433959]
[1766071315527,11.40178899,127.58,127.52,8.51189782]
[1766071315751,10.70178899,127.55,127.49,0.67]
[1766071315929,10.70178899,127.53,127.49,0.67]
[1766071316130,0.7,127.55,127.49,8.51372667]
[1766071316356,0.7,127.55,127.49,0.67]
[1766071316528,10.70178899,127.54,127.49,0.67]
[1766071316929,10.70178899,127.53,127.49,0.67]
[1766071317130,10.70178899,127.53,127.49,8.51365713]
[1766071317353,0.7,127.52,127.45,20.28505355]
[1766071317532,10.70178899,127.53,127.47,10.70178899]
[1766071317734,10.70178899,127.53,127.48,0.67]
[1766071317952,0.7,127.54,127.48,0.67]
[1766071318260,10.70178899,127.52,127.45,7.8462142]
[1766071318459,36.01806835,127.56,127.45,11.37178899]
[1766071318460,11.40178899,127.51,127.45,11.37178899]
[1766071318844,0.7,127.51,127.45,11.37178899]
[1766071319159,10.70178899,127.52,127.46,11.37178899]
[1766071319340,10.70178899,127.5,127.44,7.84658711]
[1766071319543,11.40178899,127.5,127.44,19.2183761]
[1766071319746,10.70178899,127.51,127.45,11.37178899]
[1766071319953,0.7,127.51,127.44,0.67]
[1766071320154,0.66,127.51,127.45,11.39178899]
[1766071320477,10.70178899,127.52,127.47,10.70178899]
[1766071320640,37.87574131,127.56,127.45,0.69]
[1766071320641,10.70178899,127.5,127.45,0.69]
[1766071320866,10.70178899,127.49,127.44,10.70178899]
[1766071321044,0.66,127.46,127.41,7.84855039]
[1766071321363,8.58,127.51,127.43,7.84742879]
[1766071321364,11.36178899,127.48,127.43,7.84742879]
[1766071321660,11.36178899,127.48,127.43,10.70178899]
[1766071321865,0.66,127.5,127.44,10.70178899]
[1766071322154,11.36178899,127.5,127.44,11.39178899]
[1766071322358,11.36178899,127.53,127.47,10.70178899]
[1766071322567,10.70178899,127.49,127.43,0.69]
[1766071322731,11.36178899,127.5,127.44,10.70178899]
[1766071322935,0.66,127.5,127.44,10.70178899]
[1766071323173,11.36178899,127.5,127.44,10.70178899]
[1766071323393,10.70178899,127.49,127.44,10.70178899]
[1766071323535,0.66,127.5,127.45,18.54800319]
[1766071323736,10.70178899,127.49,127.44,19.23839471]
[1766071324045,10.70178899,127.48,127.44,0.69]
[1766071324250,10.70178899,127.46,127.41,8.58]
[1766071324553,10.70178899,127.44,127.39,11.39178899]
[1766071324783,0.66,127.49,127.41,10.70178899]
[1766071324989,11.36178899,127.49,127.43,11.39178899]
[1766071325489,0.66,127.46,127.41,11.39178899]
[1766071325686,0.66,127.46,127.41,19.24044991]
[1766071325896,11.36178899,127.46,127.41,8.53866092]
[1766071326179,10.70178899,127.44,127.38,19.24196744]
[1766071326384,11.36178899,127.44,127.38,19.24196744]
[1766071326584,11.36178899,127.44,127.38,8.54017845]
[1766071326749,11.36178899,127.44,127.38,19.24196744]
[1766071326951,10.70178899,127.43,127.38,0.69]
[1766071327149,0.66,127.47,127.4,10.70178899]
[1766071327369,0.66,127.47,127.41,19.24043587]
[1766071327577,11.36178899,127.47,127.41,11.39178899]
[1766071327781,0.66,127.47,127.41,0.69]
[1766071327966,10.70178899,127.48,127.43,10.70178899]
[1766071328171,11.36178899,127.47,127.41,10.70178899]
[1766071328360,11.36178899,127.47,127.41,18.55045914]
[1766071328550,11.36178899,127.46,127.4,8.53911996]
[1766071328754,11.36178899,127.46,127.41,10.70178899]
[1766071328969,11.36178899,127.46,127.4,19.24090895]
[1766071329268,11.36178899,127.46,127.4,19.24098]
[1766071329653,0.7,127.49,127.43,10.70178899]
[1766071329854,11.40178899,127.49,127.44,11.42178899]
[1766071330077,10.70178899,127.5,127.44,11.42178899]
[1766071330282,10.70178899,127.5,127.45,10.70178899]
[1766071330579,10.70178899,127.53,127.47,11.42178899]
[1766071330782,0.7,127.51,127.46,10.70178899]
[1766071331003,19.60068356,127.55,127.44,10.70178899]
[1766071331004,11.40178899,127.5,127.44,10.70178899]
[1766071331303,19.60068356,127.55,127.46,10.70178899]
[1766071331454,10.70178899,127.52,127.47,10.70178899]
[1766071331654,11.40178899,127.52,127.46,8.56528208]
[1766071331885,11.40178899,127.52,127.46,19.26707107]
[1766071332056,11.40178899,127.52,127.46,11.42178899]
[1766071332273,11.40178899,127.52,127.47,7.84490254]
[1766071332469,11.40178899,127.52,127.47,18.54669153]
[1766071332676,10.70178899,127.54,127.49,11.41178899]
[1766071333077,10.70178899,127.53,127.47,19.25669153]
[1766071333387,11.38178899,127.54,127.48,11.41178899]
[1766071333589,11.38178899,127.54,127.48,19.25611171]
[1766071334211,0.68,127.53,127.48,19.25611171]
[1766071334510,16.42015156,127.55,127.49,10.70178899]
[1766071334511,19.96178899,127.55,127.49,10.70178899]
[1766071334813,11.38178899,127.55,127.5,10.70178899]
[1766071335100,10.70178899,127.57,127.51,11.41178899]
[1766071335275,11.38178899,127.57,127.51,11.41178899]
[1766071335802,11.38178899,127.57,127.52,7.84190715]
[1766071336579,10.70178899,127.56,127.51,19.25408977]
[1766071336879,11.38178899,127.57,127.51,19.25408977]
[1766071337397,0.68,127.57,127.52,11.41178899]
[1766071337599,0.68,127.57,127.52,19.25360884]
[1766071338486,8.51709161,127.6,127.53,0.71]
[1766071338690,10.70178899,127.6,127.55,0.71]
[1766071339415,0.68,127.6,127.55,11.41178899]
[1766071339612,10.70178899,127.61,127.55,11.41178899]
[1766071339813,11.38178899,127.6,127.55,0.71]
[1766071340382,11.38178899,127.6,127.55,19.25184722]
[1766071340583,0.68,127.6,127.55,11.41178899]
[1766071340916,11.38178899,127.6,127.55,11.41178899]
[1766071341110,11.38178899,127.6,127.55,0.71]
[1766071341294,0.68,127.6,127.55,0.71]
[1766071341604,0.68,127.61,127.55,19.25178753]
[1766071341781,0.68,127.61,127.55,11.41178899]
[1766071341982,0.68,127.61,127.52,0.71]
[1766071341983,0.68,127.6,127.52,0.71]
[1766071342183,10.70178899,127.58,127.53,19.25273471]
[1766071342408,10.80178899,127.62,127.55,7.83946441]
[1766071342587,11.38178899,127.59,127.53,18.54275272]
[1766071342785,7.93591761,127.62,127.51,8.58]
[1766071342786,10.70178899,127.57,127.51,8.58]
[1766071343109,0.68,127.56,127.51,19.28178899]
[1766071343286,0.68,127.56,127.52,10.70178899]
[1766071343619,10.70178899,127.55,127.49,21.13946195]
[1766071343811,11.38178899,127.52,127.47,7.84495933]
[1766071343983,0.68,127.52,127.47,18.54674832]
[1766071344598,11.38178899,127.52,127.46,18.54712415]
[1766071344817,11.38178899,127.52,127.45,30.05268961]
[1766071344818,0.68,127.5,127.45,18.54781358]
[1766071345018,11.38178899,127.5,127.44,18.54838905]
[1766071345396,0.68,127.5,127.47,10.70178899]
[1766071346014,0.68,127.5,127.46,10.70178899]
[1766071346322,0.68,127.48,127.42,7.84769203]
[1766071346509,0.68,127.48,127.43,10.70178899]
[1766071346717,10.71829967,127.48,127.43,10.71829967]
[1766071346886,0.68,127.47,127.42,10.71829967]
[1766071347310,0.68,127.47,127.44,10.71829967]
[1766071347545,0.68,127.47,127.43,10.71829967]
[1766071347745,0.68,127.47,127.44,10.71829967]
[1766071347934,0.68,127.47,127.45,10.71829967]
[1766071348313,9.26,127.53,127.46,10.71829967]
[1766071348637,9.26,127.53,127.49,10.71829967]
[1766071349031,0.68,127.52,127.48,10.71829967]
[1766071349342,8.58,127.53,127.48,10.71829967]
[1766071349343,0.68,127.53,127.48,10.71829967]
[1766071349518,0.68,127.49,127.44,8.58]
[1766071349718,0.68,127.49,127.45,10.71829967]
[1766071350042,11.39829967,127.49,127.43,7.84727254]
[1766071350217,10.71829967,127.49,127.44,10.71829967]
[1766071350418,0.68,127.48,127.44,10.71829967]
[1766071350744,10.71829967,127.49,127.41,7.84807346]
[1766071350745,10.71829967,127.46,127.41,7.84807346]
[1766071350948,0.68,127.45,127.41,10.71829967]
[1766071351129,0.68,127.45,127.42,10.71829967]
[1766071351443,0.68,127.44,127.39,0.2]
[1766071351613,0.68,127.43,127.39,10.91829967]
[1766071351814,10.71829967,127.43,127.39,0.2]
[1766071352039,0.68,127.43,127.39,18.76815443]
[1766071352414,11.39829967,127.43,127.39,0.2]